bitfinex/quotes_ETHUSD_20240716
["timestamp","ask_amount","ask_price","bid_price","bid_amount"]
[1721127960316,2.93135,3411.4,3410.4,2.99082905]
[1721127960517,2.93143,3411.3,3410.6,2.93199]
[1721127960918,4.05497815,3411.5,3410.6,2.93199]
[1721127961132,5.93137,3411.4,3410.6,2.93199]
[1721127961335,2.93148,3411.3,3410.4,2.93219]
[1721127961837,3.0,3411.4,3410.7,2.93194]
[1721127962044,3.0,3411.4,3410.7,3.518337]
[1721127962454,3.0,3411.4,3410.7,0.586397]
[1721127962657,0.05103981,3411.5,3411.1,2.93159]
[1721127963001,0.05103981,3411.5,3410.7,4.633397]
[1721127963002,0.05103981,3411.5,3410.9,2.93171]
[1721127963762,0.05103981,3411.5,3411.0,2.93166]
[1721127963936,0.05103981,3411.5,3411.1,2.9316]
[1721127964326,0.05103981,3411.5,3411.1,3.517931]
[1721127965375,0.05103981,3411.5,3411.3,2.9314]
[1721127965870,3.0,3412.1,3411.3,2.9314]
[1721127966164,7.37,3412.2,3411.5,2.93125]
[1721127966368,0.30550977,3412.4,3411.6,2.93116]
[1721127966520,7.37,3412.6,3412.0,2.93083]
[1721127966723,2.92998,3413.0,3412.0,2.93083]
[1721127966724,0.30548085,3412.9,3412.0,2.93083]
[1721127966924,0.30548085,3412.9,3412.3,2.9305]
[1721127967166,0.30548085,3412.9,3412.4,2.93046]
[1721127967352,7.37,3413.3,3412.2,2.98925603]
[1721127967353,7.37,3413.3,3412.2,0.05860581]
[1721127967527,9.352,3413.3,3412.7,2.93017]
[1721127967722,1.982,3413.3,3412.7,2.93017]
[1721127967987,0.30544064,3413.4,3412.8,2.93012]
[1721127968469,0.30544064,3413.4,3413.0,2.92996]
[1721127968666,7.37,3413.7,3413.0,2.92996]
[1721127968667,10.2994,3413.7,3413.0,2.92996]
[1721127969774,3.0,3413.6,3413.0,2.92996]
[1721127970018,3.0,3413.6,3412.3,6.97753]
[1721127970019,7.37,3413.7,3411.9,2.3215]
[1721127970294,2.93018,3412.8,3411.9,2.3215]
[1721127970471,2.93008,3412.9,3411.9,5.25241]
[1721127970672,0.293008,3412.8,3411.9,5.25241]
[1721127971093,0.293008,3412.8,3412.1,2.93074]
[1721127971407,3.293008,3412.8,3412.1,2.93074]
[1721127971610,0.293008,3412.8,3412.1,2.93074]
[1721127971806,0.293008,3412.8,3412.2,2.93058]
[1721127972012,3.0,3413.1,3412.6,2.93031]
[1721127972379,7.37,3413.5,3412.6,2.93031]
[1721127972703,7.37,3413.5,3412.9,2.93005]
[1721127973478,7.67543765,3414.0,3413.1,2.92983]
[1721127973709,12.45,3414.2,3413.4,2.92962]
[1721127973710,2.92894,3414.2,3413.4,2.92962]
[1721127974081,0.35641835,3414.3,3413.4,2.92962]
[1721127974277,0.05100051,3414.3,3413.4,2.92962]
[1721127974487,0.05100051,3414.3,3413.7,2.92928]
[1721127975122,0.05100051,3414.3,3413.6,2.92942]
[1721127975328,0.05100051,3414.3,3413.7,2.92935]
[1721127975906,0.64896256,3414.3,3413.7,2.92935]
[1721127976594,0.05100051,3414.3,3413.9,2.92911]
[1721127977024,3.0,3414.6,3414.0,2.92904]
[1721127977413,3.0,3414.6,3413.3,2.92969]
[1721127977414,0.30543104,3414.7,3414.2,2.92892]
[1721127977936,0.05086806,3415.0,3414.2,2.92892]
[1721127978319,0.05086806,3415.0,3414.0,2.9291]
[1721127978320,0.05086806,3415.0,3414.8,2.92835]
[1721127978522,0.30552479,3415.2,3414.8,2.92835]
[1721127978770,0.30552479,3415.2,3414.3,2.92882]
[1721127978926,0.05078526,3415.5,3414.8,2.92836]
[1721127979127,0.05078526,3415.5,3414.4,6.01469]
[1721127979353,7.37,3415.7,3415.4,2.92785]
[1721127979530,0.30547521,3415.9,3415.4,2.92785]
[1721127979741,10.34792687,3416.3,3415.4,2.92785]
[1721127980335,0.05077687,3416.3,3415.5,2.92775]
[1721127980555,2.97793687,3416.3,3415.2,2.92806]
[1721127980760,0.15,3415.9,3415.2,2.92806]
[1721127981071,2.92757,3415.8,3414.6,2.2599]
[1721127981270,3.07756,3415.9,3415.0,2.92818]
[1721127981426,3.07756,3415.9,3414.7,2.92845]
[1721127981427,2.92777,3415.6,3414.7,2.92845]
[1721127981625,0.292777,3415.5,3414.6,5.18848]
[1721127981826,2.92808,3415.2,3414.4,2.92875]
[1721127982088,0.292777,3415.5,3414.1,5.3269]
[1721127982360,1.5,3416.0,3414.4,2.92877]
[1721127982581,1.5,3416.0,3415.0,2.447]
[1721127982880,1.5,3416.0,3415.5,2.92782]
[1721127983027,1.5,3416.0,3415.8,2.92756]
[1721127983228,0.88883142,3416.0,3415.8,2.92756]
[1721127983435,0.88883142,3416.0,3415.6,2.92774]
[1721127983759,0.88883142,3416.0,3415.9,2.92748]
[1721127984137,3.23201597,3417.0,3416.1,2.92731]
[1721127984138,0.30546597,3417.0,3416.1,2.92731]
[1721127984370,0.05074691,3417.4,3416.3,2.92706]
[1721127984538,0.05074691,3417.4,3416.4,0.55]
[1721127984736,3.0739646,3417.9,3416.5,3.865047]
[1721127984737,2.92594,3417.7,3416.5,3.865047]
[1721127984942,2.92594,3417.7,3416.5,0.938127]
[1721127985180,2.92594,3417.7,3416.2,2.8181]
[1721127985181,3.0739646,3417.9,3417.0,2.92652]
[1721127985539,0.1481846,3417.9,3416.6,2.92685]
[1721127985746,0.1481846,3417.9,3416.7,2.92678]
[1721127985747,2.92594,3417.7,3416.7,2.92678]
[1721127986154,2.92594,3417.7,3416.8,2.92671]
[1721127986480,3.0739546,3417.9,3416.5,2.92693]
[1721127986481,2.92603,3417.6,3416.5,2.92693]
[1721127986693,0.292603,3417.5,3416.2,2.8181]
[1721127986985,0.292603,3417.5,3416.5,2.92696]
[1721127987290,0.292603,3417.5,3416.7,2.92679]
[1721127987784,3.218723,3417.5,3416.4,2.92703]
[1721127988152,0.292603,3417.5,3416.6,2.92687]
[1721127988353,0.292603,3417.5,3416.7,2.92679]
[1721127988843,3.218723,3417.5,3416.7,2.92679]
[1721127989043,0.6218723,3417.4,3416.4,2.92703]
[1721127989444,0.6218723,3417.4,3416.2,2.8181]
[1721127989445,3.086,3419.7,3416.8,4.245]
[1721127989686,3.01120019,3423.4,3416.8,4.245]
[1721127989687,4.62088,3423.7,3421.2,5.8459]
[1721127989910,3.1197597,3424.7,3422.5,2.92182]
[1721127989911,4.092057,3424.6,3422.5,2.92182]
[1721127990221,0.1997597,3424.7,3422.4,2.9219]
[1721127990344,0.1997597,3424.7,3421.8,3.086]
[1721127990345,0.1997597,3424.7,3423.1,2.92129]
[1721127990543,0.1997597,3424.7,3422.9,2.92144]
[1721127990759,0.1997597,3424.7,3421.8,2.92235]
[1721127990760,0.1997597,3424.7,3422.5,2.92181]
[1721127990957,0.31196797,3424.6,3422.5,2.92181]
[1721127991208,0.31196797,3424.6,3421.8,2.3845]
[1721127991209,2.92104,3423.5,3421.8,2.3845]
[1721127991491,2.9209,3423.6,3421.8,5.30692]
[1721127991666,1.81196797,3424.6,3422.2,2.92209]
[1721127991841,1.81196797,3424.6,3421.8,2.3845]
[1721127991842,0.31196797,3424.6,3421.8,2.3845]
[1721127992044,2.92058,3424.0,3422.2,2.92208]
[1721127992277,2.92007,3424.6,3421.9,0.23845]
[1721127992485,3.3997597,3424.7,3421.8,2.3845]
[1721127992803,0.1997597,3424.7,3422.1,2.92217]
[1721127993079,0.1997597,3424.7,3422.5,4.245]
[1721127993283,0.1997597,3424.7,3423.0,2.92138]
[1721127993583,0.1997597,3424.7,3422.6,3.55]
[1721127993584,0.1997597,3424.7,3422.9,2.92147]
[1721127993805,0.1997597,3424.7,3422.9,0.647147]
[1721127993961,0.1997597,3424.7,3423.4,2.92106]
[1721127994168,0.1997597,3424.7,3423.1,2.92128]
[1721127994488,0.1997597,3424.7,3423.2,0.55]
[1721127994793,0.1997597,3424.7,3424.1,2.92047]
[1721127995166,0.1997597,3424.7,3424.4,2.92018]
[1721127995410,0.1997597,3424.7,3424.5,2.92011]
[1721127995693,0.1997597,3424.7,3424.6,2.92004]
[1721127996945,0.1997597,3424.7,3424.6,0.30348447]
[1721127998985,0.51973567,3424.7,3424.6,0.30348447]
[1721127999486,0.1997597,3424.7,3424.6,0.30348447]
[1721127999997,0.1997597,3424.7,3424.6,3.22352447]
[1721128000163,1.5,3426.8,3424.6,3.22352447]
[1721128000164,2.91807,3427.0,3424.6,0.30348447]
[1721128000380,2.91807,3427.0,3425.6,2.91919]
[1721128000597,2.91777,3427.3,3425.7,2.9191]
[1721128000759,0.527767,3427.2,3425.9,2.91893]
[1721128000966,0.527767,3427.2,3426.0,2.91885]
[1721128001298,2.3599,3428.3,3426.5,2.91835]
[1721128001605,2.3599,3428.3,3427.0,2.91796]
[1721128001606,2.91698,3428.2,3427.0,2.91796]
[1721128001815,2.91698,3428.2,3426.5,2.91839]
[1721128002018,2.91722,3428.0,3426.5,2.91839]
[1721128002225,2.91722,3428.0,3426.1,2.4536]
[1721128002226,5.2768,3428.3,3426.9,2.91805]
[1721128002369,1.46046369,3431.8,3427.0,2.918]
[1721128002370,0.69068306,3428.1,3427.0,2.918]
[1721128002570,0.1481846,3428.1,3427.6,2.91748]
[1721128002806,0.1481846,3428.1,3427.4,2.91765]
[1721128003192,0.1481846,3428.1,3426.9,2.91806]
[1721128003406,0.1481846,3428.1,3427.7,2.91739]
[1721128003698,0.1481846,3428.1,3428.0,0.30348447]
[1721128004415,1e-08,3428.1,3428.0,3.22063447]
[1721128004640,1e-08,3428.1,3427.6,2.3581]
[1721128004837,1e-08,3428.1,3427.2,2.91776]
[1721128005130,1e-08,3428.1,3426.8,2.91816]
[1721128005288,2.88624925,3428.4,3426.9,2.91807]
[1721128005474,0.28862493,3428.3,3427.3,2.91771]
[1721128005668,2.9158,3429.6,3427.5,2.9175]
[1721128005881,2.91658,3428.7,3427.5,2.9175]
[1721128006067,2.91648,3428.8,3427.4,2.91758]
[1721128006312,2.91682,3428.4,3426.7,3.0]
[1721128006534,2.91682,3428.4,3427.3,2.91773]
[1721128006535,0.583353,3428.4,3427.3,2.91773]
[1721128006691,2.91665,3428.6,3427.3,2.91773]
[1721128007028,2.91619,3429.2,3425.8,2.2856]
[1721128007029,2.91757,3427.6,3425.8,2.2856]
[1721128007172,1.7,3428.7,3426.4,2.91844]
[1721128007173,2.91675,3428.5,3426.4,2.91844]
[1721128007376,1.7,3428.7,3425.8,2.2856]
[1721128007377,5.85278,3428.4,3426.0,2.91882]
[1721128007618,5.85278,3428.4,3425.8,2.2856]
[1721128007619,3.0,3428.3,3425.8,2.2856]
[1721128007775,0.53859,3428.2,3426.9,2.91807]
[1721128007971,0.53859,3428.2,3426.9,2.918]
[1721128008198,3.18,3429.2,3426.4,2.91849]
[1721128008410,3.18,3429.2,3427.6,2.91748]
[1721128008411,2.91626,3429.1,3427.6,2.91748]
[1721128008604,3.18,3429.2,3426.7,2.91819]
[1721128008605,2.91674,3428.5,3426.7,2.91819]
[1721128008798,2.91637,3429.0,3427.7,2.91739]
[1721128009115,4.0859,3429.9,3426.8,0.55]
[1721128009116,2.3859,3429.9,3427.2,3.0]
[1721128009431,2.91523,3430.3,3428.6,2.91663]
[1721128009572,2.91494,3430.6,3428.4,0.30314809]
[1721128009779,2.91571,3429.7,3428.4,0.30314809]
[1721128010091,5.83344,3428.5,3428.4,0.30314809]
[1721128010269,0.583344,3428.5,3428.4,0.30314809]
[1721128010478,5.83344,3428.5,3428.4,0.30314809]
[1721128010810,5.83344,3428.5,3425.7,2.91903]
[1721128010811,2.9179,3427.2,3425.7,2.91903]
[1721128011015,2.91821,3426.8,3425.6,2.3091]
[1721128011229,2.91741,3427.7,3424.6,2.92002]
[1721128011230,2.91886,3426.0,3424.6,2.92002]
[1721128011380,2.91911,3425.7,3424.3,2.92026]
[1721128011580,2.91911,3425.7,3424.6,2.92003]
[1721128011928,2.91913,3425.7,3424.2,2.92032]
[1721128012215,0.291913,3425.6,3424.2,0.584085]
[1721128012431,0.291913,3425.6,3423.5,5.745]
[1721128012432,2.91844,3426.5,3424.9,2.91971]
[1721128012711,5.91851,3426.4,3424.7,2.91992]
[1721128012915,3.0,3426.7,3424.6,2.91997]
[1721128012916,2.91843,3426.5,3424.6,2.91997]
[1721128013115,2.91909,3425.8,3424.6,2.91997]
[1721128013447,2.91909,3425.8,3424.4,2.92021]
[1721128013448,3.0,3426.4,3424.7,2.91994]
[1721128013631,0.59184,3426.3,3424.8,2.91986]
[1721128013778,0.59184,3426.3,3425.1,2.91961]
[1721128013977,2.2907,3427.4,3424.4,4.245]
[1721128013978,5.20771,3428.2,3424.6,3.086]
[1721128014179,2.91784,3427.2,3425.8,2.91901]
[1721128014391,2.91792,3427.1,3425.8,2.91901]
[1721128014591,2.91808,3426.9,3425.8,2.91901]
[1721128014934,1.7,3427.7,3425.4,3.0]
[1721128015135,1.7,3427.7,3425.3,2.91942]
[1721128015136,0.461724,3427.6,3425.3,2.91942]
[1721128015421,0.461724,3427.6,3424.9,2.91973]
[1721128015422,2.91833,3426.7,3424.9,2.91973]
[1721128015734,2.91833,3426.7,3424.8,3.0]
[1721128015735,2.91888,3426.0,3424.8,3.0]
[1721128015959,1.7,3426.0,3424.0,2.92055]
[1721128016080,1.7,3426.0,3423.2,7.16621]
[1721128016081,2.92008,3424.6,3423.2,2.92124]
[1721128016277,2.92008,3424.6,3423.0,2.2569]
[1721128016278,0.292008,3424.5,3423.5,2.92093]
[1721128016478,2.91935,3425.5,3423.5,2.92098]
[1721128016713,9.16,3426.5,3423.6,2.92084]
[1721128016714,3.0,3425.4,3423.6,2.92084]
[1721128016873,3.0,3425.4,3424.1,2.92043]
[1721128017091,5.91928,3425.5,3424.1,2.92043]
[1721128017291,5.91928,3425.5,3423.0,6.5019]
[1721128017292,2.92005,3424.6,3423.0,6.5019]
[1721128017622,2.91988,3424.8,3423.0,6.5019]
[1721128017623,0.583993,3424.5,3423.4,2.921]
[1721128018003,0.583993,3424.5,3423.3,2.92115]
[1721128018004,3.504143,3424.5,3423.3,2.92115]
[1721128018236,0.583993,3424.5,3423.3,2.92115]
[1721128018382,3.0,3425.5,3423.1,2.92131]
[1721128018584,2.92007,3424.6,3423.1,2.92131]
[1721128018782,2.92007,3424.6,3423.0,2.2569]
[1721128018783,4.1704,3425.2,3423.0,2.2569]
[1721128019012,4.1704,3425.2,3421.6,7.16759]
[1721128019013,2.92082,3423.7,3422.4,2.92188]
[1721128019220,2.92092,3423.6,3422.3,5.33004]
[1721128019386,0.292092,3423.5,3422.3,5.33004]
[1721128019585,0.292092,3423.5,3422.6,2.92173]
[1721128019820,3.0,3424.4,3422.7,2.92162]
[1721128020117,2.92065,3423.9,3422.8,2.92157]
[1721128020687,2.92065,3423.9,3422.5,6.00783]
[1721128020878,2.92107,3423.4,3422.3,2.4081]
[1721128021112,4.7,3424.3,3422.3,2.4081]
[1721128021113,2.9209,3423.6,3422.3,2.4081]
[1721128021431,3.9704,3425.2,3422.3,2.4081]
[1721128021432,2.92023,3424.4,3422.8,3.086]
[1721128021578,2.92023,3424.4,3423.3,2.92114]
[1721128021579,2.92022,3424.4,3423.3,2.92114]
[1721128021778,2.92022,3424.4,3423.1,6.00728]
[1721128022192,2.4704,3425.2,3423.2,3.086]
[1721128022423,2.91915,3425.7,3423.4,3.086]
[1721128022424,2.91988,3424.8,3423.4,3.086]
[1721128022594,0.583967,3424.7,3423.5,0.55]
[1721128022796,0.583967,3424.7,3423.5,3.086]
[1721128023117,0.583967,3424.7,3423.6,0.55]
[1721128023322,0.583967,3424.7,3423.3,0.55]
[1721128023323,0.583967,3424.7,3423.5,3.47095]
[1721128023533,2.91941,3425.4,3423.5,3.47095]
[1721128023534,2.91945,3425.3,3424.0,2.92049]
[1721128023741,2.91928,3425.5,3423.9,3.086]
[1721128023940,2.91928,3425.5,3424.1,0.55]
[1721128024157,2.91921,3425.6,3424.3,2.92029]
[1721128024428,2.91903,3425.8,3424.4,3.559246]
[1721128024647,7.37,3425.9,3424.3,2.92029]
[1721128024648,2.91919,3425.6,3424.3,2.92029]
[1721128024786,2.91919,3425.6,3424.3,2.9203]
[1721128025191,7.37,3425.9,3424.0,5.92055]
[1721128025192,2.91961,3425.2,3424.0,5.92055]
[1721128025424,7.37,3425.9,3423.6,2.3995]
[1721128025632,2.92028,3424.4,3423.1,2.92131]
[1721128025800,3.086,3425.0,3423.0,0.2926]
[1721128025992,2.92064,3423.9,3423.0,0.2926]
[1721128026346,2.92027,3424.4,3422.6,2.92167]
[1721128026493,2.9209,3423.6,3422.6,2.92167]
[1721128026890,2.9209,3423.6,3422.4,2.92188]
[1721128027087,0.584163,3423.6,3422.4,3.086]
[1721128027343,2.92073,3423.8,3422.3,2.92201]
[1721128027690,2.92098,3423.5,3422.4,2.92191]
[1721128028325,2.92098,3423.5,3422.5,2.92181]
[1721128028897,3.0,3424.1,3421.7,2.92245]
[1721128028898,2.92159,3422.8,3421.7,2.92245]
[1721128029097,2.92177,3422.6,3421.5,2.2512]
[1721128029297,0.292159,3422.7,3421.5,2.2512]
[1721128029515,0.292159,3422.7,3421.6,2.9226]
[1721128029794,2.92201,3422.3,3421.1,2.923]
[1721128029991,2.92184,3422.5,3421.1,2.923]
[1721128030427,2.92184,3422.5,3421.2,2.92292]
[1721128030631,2.92184,3422.5,3421.1,2.923]
[1721128030632,2.92202,3422.3,3420.7,2.4198]
[1721128030794,5.92141,3423.0,3420.7,2.4198]
[1721128030795,2.92252,3421.8,3420.7,2.4198]
[1721128031212,2.92252,3421.7,3420.4,2.92363]
[1721128031521,5.92197,3422.4,3420.4,2.92363]
[1721128031522,3.214862,3421.6,3420.4,2.92363]
[1721128031735,2.92274,3421.5,3420.4,2.92363]
[1721128031936,2.92274,3421.5,3420.0,3.086]
[1721128031937,3.214902,3421.6,3420.0,3.086]
[1721128032159,0.292252,3421.6,3420.4,3.086]
[1721128032442,7.37,3422.3,3420.7,2.92336]
[1721128032443,2.92243,3421.8,3420.7,2.92336]
[1721128032605,2.92267,3421.6,3420.5,2.92353]
[1721128032811,2.92267,3421.6,3420.2,2.92379]
[1721128032812,2.92267,3421.6,3420.3,2.92367]
[1721128033151,2.92267,3421.6,3419.9,2.2916]
[1721128033152,2.9227,3421.5,3419.9,2.2916]
[1721128033450,7.37,3422.3,3419.9,2.2916]
[1721128033451,1.7,3422.1,3419.9,2.2916]
[1721128033611,2.92322,3420.9,3419.9,2.2916]
[1721128033924,2.92308,3421.1,3419.9,2.2916]
[1721128034428,2.3178,3421.4,3419.2,0.2926]
[1721128034633,3.0,3421.5,3419.0,2.4643]
[1721128034835,2.92259,3421.7,3420.3,2.92365]
[1721128035031,0.584494,3421.6,3420.4,2.4643]
[1721128035231,2.90047476,3421.4,3420.4,2.4643]
[1721128035408,2.92304,3421.1,3420.1,2.92388]
[1721128035610,2.92295,3421.2,3419.9,2.92405]
[1721128035836,2.92303,3421.1,3420.0,3.0]
[1721128036009,0.292303,3421.0,3419.7,5.4274]
[1721128036226,6.507164,3421.6,3420.1,2.92381]
[1721128036227,2.92287,3421.3,3420.1,2.92381]
[1721128036423,2.92295,3421.2,3420.1,2.92381]
[1721128037219,0.584494,3421.6,3419.7,2.4274]
[1721128037220,2.92347,3420.6,3419.7,2.4274]
[1721128037420,5.336,3421.5,3419.1,5.35043]
[1721128037622,2.92317,3421.0,3419.5,2.92432]
[1721128037855,2.92336,3420.8,3419.6,2.92431]
[1721128038222,2.92354,3420.6,3419.4,2.92442]
[1721128038582,0.292317,3420.9,3419.1,2.4257]
[1721128038745,2.92406,3419.9,3418.7,2.92504]
[1721128038935,2.92406,3419.9,3418.8,2.92499]
[1721128039130,2.92406,3419.9,3418.5,2.3927]
[1721128039131,2.92423,3419.7,3418.5,5.31795]
[1721128039330,2.92442,3419.5,3418.5,2.3927]
[1721128039567,0.292406,3419.9,3418.5,2.3927]
[1721128039742,0.292406,3419.9,3417.9,0.1481846]
[1721128039743,2.92476,3419.1,3417.9,0.1481846]
[1721128039944,2.92499,3418.9,3417.9,0.1481846]
[1721128040133,0.584975,3418.8,3417.9,0.1481846]
[1721128040331,2.92483,3419.0,3417.9,0.1481846]
[1721128040332,2.9251,3418.7,3417.9,0.1481846]
[1721128040762,6.086,3419.5,3417.9,0.1481846]
[1721128040945,2.92489,3419.0,3417.9,0.1481846]
[1721128041270,2.92492,3418.9,3417.9,0.1481846]
[1721128041474,2.92501,3418.8,3417.9,0.1481846]
[1721128041632,5.92446,3419.5,3418.1,2.92559]
[1721128041974,5.92446,3419.5,3418.2,2.98395781]
[1721128041975,3.0,3419.5,3418.2,2.98395781]
[1721128042296,0.292406,3419.9,3418.1,2.4171]
[1721128042297,3.216476,3419.9,3418.4,2.92533]
[1721128042435,2.92376,3420.3,3418.8,2.92493]
[1721128042635,2.92407,3419.9,3418.9,2.9249]
[1721128042870,2.92407,3419.9,3418.9,5.9249]
[1721128043173,2.92389,3420.1,3418.9,5.9249]
[1721128043377,2.924,3420.0,3418.9,5.9249]
[1721128043559,10.29338,3420.7,3419.0,2.92481]
[1721128043743,2.92371,3420.4,3419.3,2.92457]
[1721128044033,0.292317,3420.9,3419.6,2.92425]
[1721128044447,2.2686,3421.4,3419.4,2.4618]
[1721128044448,2.92377,3420.3,3419.4,2.4618]
[1721128044854,2.92355,3420.5,3419.4,2.4618]
[1721128045182,2.9237,3420.4,3419.4,2.4618]
[1721128045478,2.92372,3420.3,3419.4,2.4618]
[1721128045939,2.9237,3420.4,3419.4,2.4618]
[1721128046445,2.92377,3420.3,3419.4,2.4618]
[1721128046833,2.92377,3420.3,3418.7,2.3432]
[1721128046834,0.584733,3420.3,3418.7,2.3432]
[1721128047037,2.92334,3420.8,3418.7,2.3432]
[1721128047038,0.05839352,3420.2,3418.7,2.3432]
[1721128047372,0.05839352,3420.2,3418.0,5.36507]
[1721128047373,2.92451,3419.4,3418.0,5.36507]
[1721128047534,2.92472,3419.2,3418.0,2.4394]
[1721128047739,2.92502,3418.8,3418.0,2.4394]
[1721128047972,2.92463,3419.3,3418.0,2.4394]
[1721128048175,0.292463,3419.2,3418.0,2.4394]
[1721128048343,2.9254,3418.4,3417.9,0.1481846]
[1721128048544,2.92548,3418.3,3417.9,0.1481846]
[1721128048744,7.37,3419.2,3417.9,0.1481846]
[1721128049085,2.92518,3418.6,3417.9,0.1481846]
[1721128049378,2.92527,3418.5,3417.9,0.1481846]
[1721128049690,0.585019,3418.6,3417.9,0.1481846]
[1721128049691,3.510199,3418.6,3417.9,0.1481846]
[1721128049899,2.92543,3418.3,3417.9,0.1481846]
[1721128050880,5.85136,3418.0,3417.9,0.1481846]
[1721128051121,8.83543352,3418.0,3417.9,0.1481846]
[1721128051650,8.90975352,3418.0,3417.9,0.1481846]
[1721128051851,6.87819873,3418.0,3417.9,0.1481846]
[1721128052081,3.95251873,3418.0,3417.9,0.1481846]
[1721128052389,0.06154338,3418.0,3417.9,0.1481846]
[1721128054987,2.98722338,3418.0,3417.9,0.1481846]
[1721128055207,5.91290338,3418.0,3417.9,0.1481846]
[1721128056185,2.98722338,3418.0,3417.9,0.1481846]
[1721128056549,5.91290338,3418.0,3417.9,0.1481846]
[1721128057302,6.50419372,3418.0,3417.9,0.1481846]
[1721128058492,9.42987372,3418.0,3417.9,0.1481846]
[1721128059693,6.50419372,3418.0,3417.9,0.1481846]
[1721128059895,5.91290338,3418.0,3417.9,0.1481846]
[1721128060601,2.98722338,3418.0,3417.9,0.1481846]
[1721128060775,0.06154338,3418.0,3417.9,0.1481846]
[1721128062183,0.06154338,3418.0,3417.9,3.0739546]
[1721128062634,7.37,3418.8,3418.1,2.92552]
[1721128062789,2.92424,3419.7,3418.4,2.92533]
[1721128062988,7.37,3419.8,3418.4,2.92533]
[1721128062989,2.92371,3420.4,3418.5,2.4035]
[1721128063187,2.92436,3419.6,3418.5,2.4035]
[1721128063486,2.92413,3419.9,3418.6,2.92517]
[1721128063809,2.92407,3419.9,3418.7,2.92508]
[1721128064128,2.92416,3419.8,3418.7,2.92508]
[1721128064336,2.9239,3420.1,3418.8,3.0]
[1721128064337,2.92395,3420.1,3418.8,3.0]
[1721128064485,7.37,3420.4,3418.8,3.0]
[1721128064486,2.92398,3420.0,3418.8,3.0]
[1721128064687,2.92398,3420.0,3418.5,2.4035]
[1721128064688,0.05839352,3420.0,3418.5,2.4035]
[1721128064937,2.92474,3419.1,3418.5,2.4035]
[1721128065139,2.92474,3419.1,3418.0,5.92564]
[1721128065140,0.584946,3419.1,3418.0,3.0]
[1721128065304,2.92486,3419.0,3417.9,3.1481846]
[1721128065481,2.92476,3419.1,3418.0,2.92562]
[1721128065685,2.92459,3419.3,3418.3,2.92539]
[1721128065884,2.92432,3419.6,3418.3,2.92539]
[1721128066084,0.55,3419.5,3418.4,2.92531]
[1721128066324,0.55,3419.5,3418.4,3.51038]
[1721128066493,2.924,3420.0,3418.7,2.92502]
[1721128066710,2.92342,3420.7,3418.9,2.92483]
[1721128066902,2.92342,3420.7,3419.0,2.92479]
[1721128066903,2.92372,3420.3,3419.0,2.92479]
[1721128067129,2.9238,3420.2,3418.8,2.4427]
[1721128067435,2.92342,3420.7,3418.8,2.4427]
[1721128067436,2.92418,3419.8,3418.8,2.4427]
[1721128067796,2.92418,3419.8,3418.8,8.36769]
[1721128067993,2.92426,3419.7,3418.8,2.4427]
[1721128068192,0.29238,3420.1,3418.8,2.4427]
[1721128068392,2.92448,3419.5,3418.8,2.4427]
[1721128068617,2.92448,3419.5,3418.2,5.4427]
[1721128068837,2.92448,3419.5,3418.2,5.36816]
[1721128069040,2.9245,3419.4,3418.3,3.0]
[1721128069241,0.55,3420.0,3418.2,2.4427]
[1721128069242,2.92472,3419.2,3418.2,2.4427]
[1721128069424,2.92492,3418.9,3418.2,2.4427]
[1721128069739,2.92492,3418.9,3417.9,7.4481846]
[1721128069740,2.92509,3418.7,3417.9,0.1481846]
[1721128070430,3.22311135,3419.1,3418.1,2.92558]
[1721128070634,2.92458,3419.3,3418.2,2.9255]
[1721128070940,2.92458,3419.3,3417.9,3.0739446]
[1721128070941,7.37,3419.7,3417.9,3.2341846]
[1721128071257,2.92424,3419.7,3418.7,2.92508]
[1721128071573,2.92408,3419.9,3418.7,2.92501]
[1721128071849,2.9242,3419.8,3418.8,2.4475]
[1721128072268,0.584807,3419.9,3419.0,2.9248]
[1721128072563,7.37,3420.5,3419.1,0.05848619]
[1721128072727,2.92346,3420.6,3419.3,2.92457]
[1721128073060,2.92355,3420.5,3419.4,0.05848025]
[1721128073266,2.92355,3420.5,3418.8,2.4475]
[1721128073267,2.92326,3420.9,3419.0,6.086]
[1721128073417,2.92326,3420.9,3419.6,2.92423]
[1721128073780,7.37,3421.3,3419.7,3.0]
[1721128073781,2.92349,3420.6,3419.7,3.0]
[1721128073928,2.92349,3420.6,3419.3,2.92457]
[1721128074248,2.92359,3420.5,3419.4,3.0]
[1721128074455,2.92303,3421.1,3419.4,2.92448]
[1721128074456,2.92363,3420.4,3419.4,2.92448]
[1721128074638,2.92363,3420.4,3419.5,3.0]
[1721128074839,2.92389,3420.1,3418.9,2.92491]
[1721128075067,2.92415,3419.8,3419.0,3.0]
[1721128075237,2.92432,3419.6,3418.8,2.4475]
[1721128075768,2.92451,3419.4,3418.2,5.35191]
[1721128075935,2.92459,3419.3,3418.3,2.92542]
[1721128076374,2.92459,3419.3,3418.2,5.3519]
[1721128076545,3.22280035,3419.4,3418.2,2.4264]
[1721128076546,2.92466,3419.2,3418.2,2.4264]
[1721128076844,2.92475,3419.1,3418.2,2.4264]
[1721128077049,2.92493,3418.9,3418.2,2.4264]
[1721128079061,2.92457,3419.3,3418.2,2.4264]
[1721128079274,0.29829035,3419.4,3418.2,5.3519]
[1721128079275,2.92471,3419.2,3418.2,5.3519]
[1721128080382,2.9244,3419.5,3418.2,5.35189]
[1721128080536,3.21684,3419.5,3418.2,6.37778248]
[1721128080730,3.21684,3419.5,3418.5,2.9252]